lending/lending_fUSD_20250224
["ID","MTS","AMOUNT","RATE_DAILY","PERIOD"]
[354264451,1740373833920,-529.41,0.00016516,2]
[354264452,1740373833930,-500.0,0.00016516,2]
[354264453,1740373833939,-499.997,0.00016516,2]
[354264454,1740373833949,-500.0,0.00016516,2]
[354264455,1740373833958,-523.87,0.00016516,2]
[354264456,1740373833967,-500.0,0.00016516,2]
[354264457,1740373833976,-500.0,0.00016516,2]
[354264458,1740373833985,-329.76,0.00016516,2]
[354264459,1740373833995,-288.169968,0.00016516,2]
[354264460,1740373834004,-500.0,0.00016516,2]
[354264461,1740373834013,-500.0,0.00016516,2]
[354264462,1740373834022,-239.29,0.00016516,2]
[354264463,1740373834031,-500.0,0.00016516,2]
[354264464,1740373834040,-500.0,0.00016516,2]
[354264465,1740373834049,-500.0,0.00016516,2]
[354264466,1740373834058,-500.0,0.00016516,2]
[354264467,1740373834067,-634.6,0.00016516,2]
[354264468,1740373834075,-500.0,0.00016516,2]
[354264469,1740373834084,-500.0,0.00016516,2]
[354264470,1740373834094,-500.0,0.00016516,2]
[354264471,1740373834103,-500.0,0.00016516,2]
[354264472,1740373834112,-558.66,0.00016516,2]
[354264473,1740373834121,-580.62,0.00016516,2]
[354264474,1740373834130,-500.0,0.00016516,2]
[354264475,1740373834140,-552.92,0.00016516,2]
[354264476,1740373834149,-575.58,0.00016516,2]
[354264477,1740373834160,-208.322645,0.00016516,2]
[354264478,1740373834170,-500.0,0.00016516,2]
[354264479,1740373834179,-507.24497685,0.00016516,2]
[354264480,1740373834189,-500.0,0.00016516,2]
[354264481,1740373834199,-500.0,0.00016516,2]
[354264482,1740373834209,-500.0,0.00016516,2]
[354264483,1740373834219,-511.97522273,0.00016516,2]
[354264484,1740373834228,-500.0,0.00016516,2]
[354264485,1740373834238,-209.47,0.00016516,2]
[354264486,1740373834249,-500.0,0.00016516,2]
[354264487,1740373834258,-500.0,0.00016516,2]
[354264488,1740373834267,-280.91,0.00016516,2]
[354264489,1740373834276,-500.0,0.00016516,2]
[354264490,1740373834285,-647.39,0.00016516,2]
[354264491,1740373834295,-544.87,0.00016516,2]
[354264492,1740373834304,-500.0,0.00016516,2]
[354264493,1740373834313,-500.0,0.00016516,2]
[354264494,1740373834323,-523.1,0.00016516,2]
[354264495,1740373834332,-508.80164589,0.00016516,2]
[354264496,1740373834342,-502.60967917,0.00016516,2]
[354264497,1740373834351,-500.0,0.00016516,2]
[354264498,1740373834360,-500.0,0.00016516,2]
[354264499,1740373834369,-500.0,0.00016516,2]
[354264500,1740373834378,-500.0,0.00016516,2]
[354264501,1740373834388,-565.42,0.00016516,2]
[354264502,1740373834397,-532.08308559,0.00016516,2]
[354264503,1740373834407,-509.53146174,0.00016516,2]
[354264504,1740373834416,-500.0,0.00016516,2]
[354264505,1740373834425,-500.0,0.00016516,2]
[354264506,1740373834434,-500.0,0.00016516,2]
[354264507,1740373834444,-500.0,0.00016516,2]
[354264508,1740373834453,-624.64,0.00016516,2]
[354264509,1740373834461,-500.0,0.00016516,2]
[354264510,1740373834471,-500.0,0.00016516,2]
[354264511,1740373834479,-500.0,0.00016516,2]
[354264512,1740373834488,-500.0,0.00016516,2]
[354264513,1740373834497,-500.0,0.00016516,2]
[354264514,1740373834506,-500.0,0.00016516,2]
[354264515,1740373834515,-500.0,0.00016516,2]
[354264516,1740373834524,-616.86,0.00016516,2]
[354264517,1740373834533,-500.0,0.00016516,2]
[354264518,1740373834543,-500.0,0.00016516,2]
[354264519,1740373834551,-500.0,0.00016516,2]
[354264520,1740373834561,-500.0,0.00016516,2]
[354264521,1740373834570,-500.0,0.00016516,2]
[354264522,1740373834579,-500.0,0.00016516,2]
[354264523,1740373834588,-500.0,0.00016516,2]
[354264524,1740373834597,-500.0,0.00016516,2]
[354264525,1740373834606,-500.0,0.00016516,2]
[354264526,1740373834615,-503.04,0.00016516,2]
[354264527,1740373834624,-500.0,0.00016516,2]
[354264528,1740373834634,-500.0,0.00016516,2]
[354264529,1740373834643,-500.0,0.00016516,2]
[354264530,1740373834653,-501.28149413,0.00016516,2]
[354264531,1740373834662,-500.0,0.00016516,2]
[354264532,1740373834671,-500.0,0.00016516,2]
[354264533,1740373834680,-500.0,0.00016516,2]
[354264534,1740373834689,-500.0,0.00016516,2]
[354264535,1740373834698,-500.0,0.00016516,2]
[354264536,1740373834707,-500.0,0.00016516,2]
[354264537,1740373834716,-500.0,0.00016516,2]
[354264538,1740373834725,-500.0,0.00016516,2]
[354264539,1740373834734,-500.0,0.00016516,2]
[354264540,1740373834743,-500.0,0.00016516,2]
[354264541,1740373834752,-500.0,0.00016516,2]
[354264542,1740373834761,-500.0,0.00016516,2]
[354264543,1740373834770,-500.0,0.00016516,2]
[354264544,1740373834780,-1571.17,0.00016516,2]
[354264545,1740373834789,-500.0,0.00016516,2]
[354264546,1740373834798,-500.0,0.00016516,2]
[354264547,1740373834807,-1255.51,0.00016516,2]
[354264548,1740373834817,-2077.44,0.00016516,2]
[354264549,1740373834828,-500.0,0.00016516,2]
[354264550,1740373834839,-500.0,0.00016516,2]
[354264551,1740373834847,-769.46,0.00016516,2]
[354264552,1740373834857,-907.9,0.00016516,2]
[354264553,1740373834866,-500.0,0.00016516,2]
[354264554,1740373834875,-500.0,0.00016516,2]
[354264555,1740373834884,-500.0,0.00016516,2]
[354264556,1740373834892,-500.0,0.00016516,2]
[354264557,1740373834901,-500.0,0.00016516,2]
[354264558,1740373834910,-508.60816115,0.00016516,2]
[354264559,1740373834919,-994.72,0.00016516,2]
[354264560,1740373834928,-1183.09,0.00016516,2]
[354264561,1740373834937,-500.0,0.00016516,2]
[354264562,1740373834945,-1139.94,0.00016516,2]
[354264563,1740373834954,-500.0,0.00016516,2]
[354264564,1740373834963,-540.79,0.00016516,2]
[354264565,1740373834972,-500.0,0.00016516,2]
[354264566,1740373834981,-500.0,0.00016516,2]
[354264567,1740373834990,-500.0,0.00016516,2]
[354264568,1740373834999,-1601.03,0.00016516,2]
[354264569,1740373835007,-500.0,0.00016516,2]
[354264570,1740373835016,-771.64,0.00016516,2]
[354264571,1740373835025,-500.0,0.00016516,2]
[354264572,1740373835035,-910.48,0.00016516,2]
[354264573,1740373835044,-2.60316993,0.00016516,2]
[354264574,1740373835299,-497.39683007,0.00016516,2]
[354264575,1740373835308,-951.69,0.00016516,2]
[354264576,1740373835317,-484.73874348,0.00016516,2]
[354264577,1740373835348,-358.12125652,0.00016516,2]
[354264578,1740373835356,-42.29069667,0.00016516,2]
[354264579,1740373835367,-457.70930333,0.00016516,2]
[354264580,1740373835376,-107.84344057,0.00016516,2]
[354264581,1740373835387,-391.74651373,0.00016516,2]
[354264582,1740373835396,-500.0,0.00016516,2]
[354264583,1740373835407,-500.0,0.00016516,2]
[354264584,1740373835417,-500.0,0.00016516,2]
[354264585,1740373835426,-845.58841088,0.00016516,2]
[354264586,1740373835437,-193.62158912,0.00016516,2]
[354264587,1740373835447,-725.73,0.00016516,2]
[354264588,1740373835456,-500.0,0.00016516,2]
[354264589,1740373835465,-168.00424785,0.00016516,2]
[354264591,1740373837705,-1315.84,0.00016515,2]
[354264592,1740373837715,-331.99575215,0.00016516,2]
[354264593,1740373837724,-502.04533453,0.00016516,2]
[354264594,1740373837733,-634.66,0.00016516,2]
[354264595,1740373837742,-1331.57,0.00016516,2]
[354264596,1740373837751,-384.07262601,0.00016516,2]
[354264597,1740373837760,-500.0,0.00016516,2]
[354264598,1740373837769,-402.36662537,0.00016516,2]
[354264599,1740373837779,-97.63337463,0.00016516,2]
[354264600,1740373837788,-205.52528688,0.00016516,2]
[354264601,1740373837799,-294.47471312,0.00016516,2]
[354264602,1740373837807,-81.54660698,0.00016516,2]
[354264603,1740373837823,-763.26339302,0.00016516,2]
[354264604,1740373837832,-238.603647,0.00016516,2]
[354264605,1740373837843,-383.976353,0.00016516,2]
[354264606,1740373837852,-92.83659856,0.00016516,2]
[354264607,1740373837901,-407.16340144,0.00016516,2]
[354264608,1740373837911,-30.54603191,0.00016516,2]
[354264609,1740373837922,-474.90668815,0.00016516,2]
[354264610,1740373837930,-500.0,0.00016516,2]
[354264611,1740373837939,-859.94,0.00016516,2]
[354264612,1740373838140,-500.0,0.00016516,2]
[354264613,1740373838149,-500.0,0.00016516,2]
[354264614,1740373838160,-548.91,0.00016516,2]
[354264615,1740373838169,-7.71145413,0.00016516,2]
[354264618,1740373839782,-282.2375323,0.00016516,2]
[354264648,1740373842744,-500.0,0.00016515,2]
[354264651,1740373842753,-1203.2,0.00016515,2]
[354264654,1740373842763,-488.46725919,0.00016515,2]
[354264656,1740373842771,-1505.7,0.00016515,2]
[354264658,1740373842780,-211.53479998,0.00016516,2]
[354264660,1740373842790,-883.99,0.00016516,2]
[354264662,1740373842799,-500.0,0.00016516,2]
[354264664,1740373842807,-500.0,0.00016516,2]
[354264666,1740373842816,-500.0,0.00016516,2]
[354264668,1740373842824,-579.52,0.00016516,2]
[354264670,1740373842833,-500.0,0.00016516,2]
[354264672,1740373842842,-500.0,0.00016516,2]
[354264674,1740373842851,-502.19164059,0.00016516,2]
[354264676,1740373842860,-500.0,0.00016516,2]
[354264677,1740373842869,-673.57,0.00016516,2]
[354264678,1740373842878,-904.7,0.00016516,2]
[354264679,1740373842887,-504.45337707,0.00016516,2]
[354264680,1740373842896,-567.54,0.00016516,2]
[354264681,1740373842905,-500.0,0.00016516,2]
[354264682,1740373842914,-500.0,0.00016516,2]
[354264683,1740373842923,-494.90457414,0.00016516,2]
[354264684,1740373842932,-1007.64,0.00016516,2]
[354264685,1740373842941,-135.31300475,0.00016516,2]
[354264686,1740373842962,-364.68699525,0.00016516,2]
[354264687,1740373842971,-1417.6,0.00016516,2]
[354264688,1740373842980,-500.0,0.00016516,2]
[354264689,1740373842988,-500.0,0.00016516,2]
[354264690,1740373842997,-500.0,0.00016516,2]
[354264691,1740373843007,-692.05,0.00016516,2]
[354264692,1740373843015,-469.41542728,0.00016516,2]
[354264693,1740373843025,-500.0,0.00016516,2]
[354264694,1740373843033,-1478.6,0.00016516,2]
[354264695,1740373843042,-500.0,0.00016516,2]
[354264696,1740373843051,-186.41931302,0.00016516,2]
[354264697,1740373843060,-500.0,0.00016516,2]
[354264698,1740373843069,-1443.21,0.00016516,2]
[354264700,1740373843078,-500.0,0.00016516,2]
[354264701,1740373843088,-500.0,0.00016516,2]
[354264702,1740373843096,-500.0,0.00016516,2]
[354264703,1740373843105,-1735.92,0.00016516,2]
[354264704,1740373843114,-500.0,0.00016516,2]
[354264705,1740373843123,-630.67,0.00016516,2]
[354264706,1740373843132,-890.54,0.00016516,2]
[354264707,1740373843141,-500.0,0.00016516,2]
[354264708,1740373843150,-543.76,0.00016516,2]
[354264709,1740373843160,-2952.57,0.00016516,2]
[354264710,1740373843169,-1302.65,0.00016516,2]
[354264711,1740373843178,-500.0,0.00016516,2]
[354264712,1740373843187,-500.0,0.00016516,2]
[354264713,1740373843196,-528.4,0.00016516,2]
[354264714,1740373843205,-502.4719129,0.00016516,2]
[354264715,1740373843214,-502.65124587,0.00016516,2]
[354264716,1740373843223,-590.15,0.00016516,2]
[354264717,1740373843232,-646.97,0.00016516,2]
[354264719,1740373843241,-1458.95,0.00016516,2]
[354264720,1740373843252,-500.0,0.00016516,2]
[354264721,1740373843261,-980.93,0.00016516,2]
[354264722,1740373843270,-504.32021473,0.00016516,2]
[354264723,1740373843279,-500.0,0.00016516,2]
[354264724,1740373843288,-722.19,0.00016516,2]
[354264725,1740373843297,-500.0,0.00016516,2]
[354264726,1740373843306,-1615.61,0.00016516,2]
[354264727,1740373843315,-500.0,0.00016516,2]
[354264728,1740373843324,-500.0,0.00016516,2]
[354264729,1740373843333,-1174.57,0.00016516,2]
[354264730,1740373843342,-500.0,0.00016516,2]
[354264731,1740373843351,-644.75,0.00016516,2]
[354264732,1740373843360,-500.0,0.00016516,2]
[354264733,1740373843370,-281.30543203,0.00016516,2]
[354264734,1740373843379,-1256.13,0.00016516,2]
[354264735,1740373843387,-500.0,0.00016516,2]
[354264736,1740373843397,-500.0,0.00016516,2]
[354264737,1740373843406,-915.57,0.00016516,2]
[354264738,1740373843415,-500.0,0.00016516,2]
[354264739,1740373843424,-603.82,0.00016516,2]
[354264740,1740373843433,-500.0,0.00016516,2]
[354264741,1740373843442,-1644.63,0.00016516,2]
[354264742,1740373843451,-500.0,0.00016516,2]
[354264743,1740373843460,-645.8,0.00016516,2]
[354264744,1740373843469,-589.85,0.00016516,2]
[354264745,1740373843478,-500.0,0.00016516,2]
[354264746,1740373843487,-500.0,0.00016516,2]
[354264747,1740373843498,-4788.98,0.00016516,2]
[354264748,1740373843506,-1281.84,0.00016516,2]
[354264749,1740373843515,-500.0,0.00016516,2]
[354264750,1740373843524,-2232.44,0.00016516,2]
[354264751,1740373843533,-500.0,0.00016516,2]
[354264752,1740373843542,-500.0,0.00016516,2]
[354264753,1740373843551,-500.0,0.00016516,2]
[354264754,1740373843559,-500.0,0.00016516,2]
[354264755,1740373843569,-500.0,0.00016516,2]
[354264756,1740373843578,-500.0,0.00016516,2]
[354264757,1740373843587,-855.8,0.00016516,2]
[354264758,1740373843595,-1224.58,0.00016516,2]
[354264759,1740373843604,-500.0,0.00016516,2]
[354264760,1740373843613,-500.0,0.00016516,2]
[354264761,1740373843622,-500.0,0.00016516,2]
[354264762,1740373843631,-169.4035171,0.00016516,2]
[354264763,1740373843640,-500.0,0.00016516,2]
[354264764,1740373843649,-500.0,0.00016516,2]
[354264765,1740373843659,-1159.79,0.00016516,2]
[354264766,1740373843668,-501.95689106,0.00016516,2]
[354264767,1740373843679,-500.0,0.00016516,2]
[354264768,1740373843688,-500.0,0.00016516,2]
[354264769,1740373843697,-500.0,0.00016516,2]
[354264770,1740373843706,-500.0,0.00016516,2]
[354264771,1740373843715,-2128.32,0.00016516,2]
[354264772,1740373843723,-500.0,0.00016516,2]
[354264773,1740373843733,-500.0,0.00016516,2]
[354264774,1740373843742,-500.0,0.00016516,2]
[354264775,1740373843751,-500.0,0.00016516,2]
[354264776,1740373843761,-500.0,0.00016516,2]
[354264777,1740373843769,-464.83327874,0.00016516,2]
[354264778,1740373843782,-57.60672126,0.00016516,2]
[354264779,1740373843791,-587.12327874,0.00016516,2]
[354264780,1740373843802,-552.88672126,0.00016516,2]
[354264781,1740373843811,-406.04379674,0.00016516,2]
[354264782,1740373843844,-801.13620326,0.00016516,2]
[354264783,1740373843854,-1253.72,0.00016516,2]
[354264784,1740373843863,-500.0,0.00016516,2]
[354264785,1740373843872,-500.0,0.00016516,2]
[354264786,1740373843881,-1366.32,0.00016516,2]
[354264787,1740373843890,-500.0,0.00016516,2]
[354264788,1740373843899,-2942.02,0.00016516,2]
[354264789,1740373843908,-936.28,0.00016516,2]
[354264790,1740373843917,-500.0,0.00016516,2]
[354264791,1740373843926,-500.0,0.00016516,2]
[354264792,1740373843935,-5399.17,0.00016516,2]
[354264793,1740373843944,-500.0,0.00016516,2]
[354264794,1740373843954,-591.08,0.00016516,2]
[354264795,1740373843963,-500.0,0.00016516,2]
[354264796,1740373843972,-1248.47,0.00016516,2]
[354264797,1740373843981,-500.0,0.00016516,2]
[354264798,1740373843990,-500.0,0.00016516,2]
[354264799,1740373843999,-503.06583994,0.00016516,2]
[354264800,1740373844008,-125.62927423,0.00016516,2]
[354264801,1740373844020,-360.004999,0.00016516,2]
[354264803,1740373845643,-139.03572677,0.00016516,2]
[354264804,1740373845653,-2683.37,0.00016516,2]
[354264805,1740373845664,-500.0,0.00016516,2]
[354264806,1740373845674,-500.0,0.00016516,2]
[354264807,1740373845684,-500.0,0.00016516,2]
[354264808,1740373845693,-502.57698563,0.00016516,2]
[354264809,1740373845703,-502.22203257,0.00016517,2]
[354264810,1740373845712,-500.0,0.00016517,2]
[354264811,1740373845721,-503.58708217,0.00016517,2]
[354264812,1740373845730,-500.0,0.00016517,2]
[354264813,1740373845739,-500.0,0.00016517,2]
[354264814,1740373845749,-83.29011741,0.00016517,2]
[354264815,1740373845761,-416.70988259,0.00016517,2]
[354264816,1740373845770,-43.06290291,0.00016517,2]
[354264817,1740373845781,-270.432,0.00016517,2]
[354264818,1740373845798,-186.50509709,0.00016517,2]
[354264819,1740373845807,-101.04296697,0.00016517,2]
[354264820,1740373845818,-351.71939439,0.00016517,2]
[354264821,1740373845827,-500.0,0.00016517,2]
[354264822,1740373845836,-500.0,0.00016517,2]
[354264823,1740373845845,-211.21,0.00016517,2]
[354264824,1740373845854,-437.07060561,0.00016517,2]
[354264825,1740373845866,-62.92939439,0.00016517,2]
[354264826,1740373845875,-503.43687773,0.00016517,2]
[354264827,1740373845884,-643.44369639,0.00016517,2]
[354264828,1740373845893,-208.60176218,0.00016517,2]
[354264829,1740373845902,-317.41459095,0.00016517,2]
[354264830,1740373845913,-500.0,0.00016517,2]
[354264831,1740373845922,-505.42637789,0.00016517,2]
[354264832,1740373845931,-500.0,0.00016517,2]
[354264833,1740373845940,-504.07578261,0.00016517,2]
[354264834,1740373845950,-317.83,0.00016517,2]
[354264835,1740373845959,-500.0,0.00016517,2]
[354264836,1740373845968,-627.69920601,0.00016517,2]
[354264837,1740373845978,-248.51,0.00016517,2]
[354264838,1740373845987,-591.54,0.00016517,2]
[354264839,1740373845996,-502.78708749,0.00016517,2]
[354264840,1740373846005,-500.0,0.00016517,2]
[354264841,1740373846015,-500.0,0.00016517,2]
[354264842,1740373846023,-500.0,0.00016517,2]
[354264843,1740373846032,-500.0,0.00016517,2]
[354264844,1740373846042,-406.61,0.00016517,2]
[354264845,1740373846051,-500.0,0.00016517,2]
[354264846,1740373846060,-500.0,0.00016517,2]
[354264847,1740373846068,-573.26,0.00016517,2]
[354264848,1740373846077,-634.56,0.00016517,2]
[354264849,1740373846087,-588.64,0.00016517,2]
[354264850,1740373846096,-500.0,0.00016517,2]
[354264851,1740373846106,-500.0,0.00016517,2]
[354264852,1740373846115,-500.0,0.00016517,2]
[354264853,1740373846124,-525.82,0.00016517,2]
[354264854,1740373846134,-500.0,0.00016517,2]
[354264855,1740373846143,-500.0,0.00016517,2]
[354264856,1740373846152,-500.0,0.00016517,2]
[354264857,1740373846162,-500.0,0.00016517,2]
[354264858,1740373846172,-500.0,0.00016517,2]
[354264859,1740373846181,-500.0,0.00016517,2]
[354264860,1740373846190,-325.27972136,0.00016517,2]
[354264861,1740373846199,-530.93909307,0.00016517,2]
[354264862,1740373846208,-500.0,0.00016517,2]
[354264863,1740373846218,-500.0,0.00016517,2]
[354264864,1740373846227,-486.8403179,0.00016517,2]
[354264865,1740373846431,-318.9,0.00016517,2]
[354264866,1740373846440,-500.0,0.00016517,2]
[354264867,1740373846449,-500.0,0.00016517,2]
[354264868,1740373846458,-500.0,0.00016517,2]
[354264869,1740373846468,-500.0,0.00016517,2]
[354264870,1740373846477,-551.9,0.00016517,2]
[354264871,1740373846486,-500.0,0.00016517,2]
[354264872,1740373846495,-500.0,0.00016517,2]
[354264873,1740373846505,-500.0,0.00016517,2]
[354264874,1740373846515,-502.08106767,0.00016517,2]
[354264875,1740373846524,-500.0,0.00016517,2]
[354264876,1740373846533,-500.0,0.00016517,2]
[354264877,1740373846542,-509.07,0.00016517,2]
[354264878,1740373846551,-500.0,0.00016517,2]
[354264879,1740373846562,-590.5,0.00016517,2]
[354264880,1740373846571,-500.0,0.00016517,2]
[354264881,1740373846580,-500.0,0.00016517,2]
[354264882,1740373846589,-502.93923629,0.00016517,2]
[354264883,1740373846598,-846.68,0.00016517,2]
[354264884,1740373846607,-500.0,0.00016517,2]
[354264885,1740373846616,-502.4855765,0.00016517,2]
[354264886,1740373846625,-500.0,0.00016517,2]
[354264887,1740373846634,-597.1,0.00016517,2]
[354264888,1740373846643,-500.0,0.00016517,2]
[354264889,1740373846652,-500.0,0.00016517,2]
[354264890,1740373846661,-502.78371128,0.00016517,2]
[354264891,1740373846670,-500.0,0.00016517,2]
[354264892,1740373846679,-500.0,0.00016517,2]
[354264893,1740373846689,-500.0,0.00016517,2]
[354264894,1740373846698,-600.61,0.00016517,2]
[354264895,1740373846707,-500.0,0.00016517,2]
[354264896,1740373846716,-501.85255366,0.00016517,2]
[354264897,1740373846725,-500.0,0.00016517,2]
[354264898,1740373846734,-500.0,0.00016517,2]
[354264899,1740373846743,-1.03193585,0.00016517,2]
[354264900,1740373846755,-501.24834594,0.00016517,2]
[354264901,1740373846764,-331.52849113,0.00016517,2]
[354264902,1740373846772,-99.07316288,0.00016517,2]
[354264906,1740374502189,154.85,8.767e-05,2]
[354264909,1740374839205,500.0,0.0002,120]
[354264910,1740374857769,-800.0,9.999e-05,2]
[354264911,1740374859549,-800.0,9.999e-05,2]
[354264912,1740374861161,-800.0,9.999e-05,2]
[354264914,1740374862311,-800.0,9.999e-05,2]
[354264915,1740374864171,-800.0,9.999e-05,2]
[354264916,1740374865548,-800.0,9.999e-05,2]
[354264917,1740374866860,-800.0,9.999e-05,2]
[354264918,1740374868384,-800.0,9.999e-05,2]
[354264919,1740374869946,-574.48057829,9.999e-05,2]
[354264920,1740374869967,-150.0,9.999e-05,2]
[354264921,1740374869991,-75.51942171,9.999e-05,2]
[354264922,1740374874782,-86.51785397,9.999e-05,2]
[354264923,1740374874806,-500.0,9.999e-05,2]
[354264924,1740374874829,-213.48214603,9.999e-05,2]
[354264925,1740374886101,-200.0,9.999e-05,2]
[354264938,1740375031820,-150.0,9.999e-05,2]
[354264939,1740375031829,-68.96115724,9.999e-05,2]
[354264940,1740375031838,-2028.21280341,0.0001,2]
[354264941,1740375031876,-791.00211188,0.0001,2]
[354264942,1740375031887,-5900.0,0.0001,2]
[354264943,1740375031898,-541.345,0.0001,2]
[354264944,1740375031909,-8454.92847332,0.0001,2]
[354264945,1740375036196,-795.57,0.0001,2]
[354264946,1740375036366,-930.99788812,0.0001,2]
[354264947,1740375036377,-500.0,0.0001,2]
[354264948,1740375036390,-34037.60484534,0.0001,2]
[354265075,1740375037778,-2865.46285999,0.0001,2]
[354265077,1740375037789,-1860.04352126,0.0001,2]
[354265083,1740375037840,-1105.78358987,0.0001,2]
[354265086,1740375037851,-630.69068571,0.0001,2]
[354265088,1740375037862,-4087.13897112,0.0001,2]
[354265090,1740375037873,-4102.97005524,0.0001,2]
[354265094,1740375037899,-6409.82392561,0.0001,2]
[354265096,1740375037910,-5358.34670443,0.0001,2]
[354265103,1740375037964,-772020.65170975,0.0001,2]
[354265105,1740375037974,-200.0,0.0001,3]
[354265107,1740375037982,-76738.19973367,0.0001,2]
[354265109,1740375037991,-170.62857643,0.0001,2]
[354265111,1740375038001,-314.06336534,0.0001,2]
[354265113,1740375038010,-215.15029569,0.000108,2]
[354265115,1740375038019,-307.784168,0.00010958,2]
[354265117,1740375038028,-235.68583,0.00010958,2]
[354265119,1740375038037,-160.929922,0.00010958,2]
[354265121,1740375038046,-159.690392,0.00010958,2]
[354265123,1740375038055,-188.964165,0.00010958,2]
[354265125,1740375038064,-155.665679,0.00010958,2]
[354265127,1740375038073,-163.70789,0.00010958,2]
[354265129,1740375038082,-157.515578,0.00010958,2]
[354265131,1740375038091,-745.13,0.00010959,2]
[354265133,1740375038100,-231.0,0.00010999,2]
[354265135,1740375038109,-1875.14973934,0.00011,2]
[354265137,1740375038118,-307.784168,0.00011041,2]
[354265139,1740375038127,-235.68583,0.00011041,2]
[354265141,1740375038136,-2281.31841954,0.00011099,2]
[354265143,1740375038148,-2281.31841948,0.00011099,2]
[354265145,1740375038156,-307.784168,0.00011123,2]
[354265147,1740375038166,-235.68583,0.00011123,2]
[354265149,1740375038175,-307.784168,0.00011205,2]
[354265151,1740375038184,-235.68583,0.00011205,2]
[354265153,1740375038193,-307.784168,0.00011287,2]
[354265155,1740375038203,-235.68583,0.00011287,2]
[354265157,1740375038211,-159.690392,0.00011287,2]
[354265159,1740375038220,-307.784168,0.00011369,2]
[354265161,1740375038229,-235.68583,0.00011369,2]
[354265163,1740375038238,-160.929922,0.00011369,2]
[354265165,1740375038246,-1368.01,0.00011477,2]
[354265167,1740375038255,-2281.31841948,0.00011567,2]
[354265169,1740375038264,-500.0,0.00012054,2]
[354265171,1740375038273,-167.59,0.00012089,2]
[354265173,1740375038282,-2281.31841948,0.000124,2]
[354265176,1740375038291,-294.94598608,0.000125,2]
[354265179,1740375038300,-269.21555428,0.000125,3]
[354265182,1740375038309,-2442.36427224,0.00013,2]
[354265185,1740375038317,-197.61,0.00013151,2]
[354265188,1740375038326,-2281.31841948,0.00013233,2]
[354265191,1740375038335,-486.95,0.00013242,2]
[354265194,1740375038344,-588.71,0.000137,2]
[354265197,1740375038353,-588.71,0.000137,2]
[354265200,1740375038362,-1368.01,0.00013741,2]
[354265203,1740375038371,-23900.0,0.00013923,2]
[354265206,1740375038380,-2281.31841948,0.00014067,2]
[354265209,1740375038389,-174.06,0.00014178,2]
[354265211,1740375038398,-250.0,0.00014691,2]
[354265213,1740375038407,-500.0,0.00014793,2]
[354265215,1740375038416,-255.0690001,0.000148,2]
[354265216,1740375038425,-463.85,0.00014809,2]
[354265217,1740375038433,-1500.0,0.0001486,2]
[354265218,1740375038442,-2281.31841948,0.000149,2]
[354265219,1740375038451,-203.37283565,0.00015214,2]
[354265220,1740375038460,-150.0,0.00015214,2]
[354265221,1740375038469,-150.0,0.00015214,2]
[354265222,1740375038478,-150.0,0.00015214,2]
[354265223,1740375038487,-2000.0,0.00015236,2]
[354265224,1740375038496,-200.0,0.00015292,2]
[354265226,1740375038504,-180.81,0.00015344,2]
[354265228,1740375038513,-855.42,0.00015351,2]